[Event "Polish Youth G18 Championship 2023"]
[Site "Jastrzebia Gora"]
[Date "2023.03.12"]
[Round "1.6"]
[White "Bukala, Weronika"]
[Black "Pietrzak, Emilia"]
[Result "1-0"]
[ECO "B81"]
[WhiteElo "1899"]
[BlackElo "1424"]
[Annotator "NA RC COMBH"]
[PlyCount "59"]
[EventDate "2023.03.11"]
[EventType "swiss"]
[EventCountry "POL"]
[SourceTitle "playchess.com"]
[Source "ChessBase"]
[SourceQuality "1"]
[TimeControl "40/5400+30:1800+30"]

1. e4 {[%emt 0:00:02]} c5 {[%emt 0:00:02]} 2. Nf3 {[%emt 0:00:08]} e6 {[%emt 0:00:03]} 3. d4 {[%emt 0:00:15]} cxd4 {[%emt 0:00:03]} 4. Nxd4 {[%emt 0:00:05]} Nf6 {[%emt 0:00:03]} 5. Nc3 {[%emt 0:00:14]} d6 {[%emt 0:00:05]} 6. g4 {[%emt 0:01:14]} h6 {[%emt 0:00:15]} 7. Be3 {[%emt 0:00:42]} Be7 {[%emt 0:01:54]} 8. Rg1 {[%emt 0:02:44]} Nc6 {[%emt 0:01:50]} 9. h4 {[%emt 0:12:45]} d5 {[%emt 0:04:36]} 10. Bb5 {[%emt 0:03:41]} Bd7 {[%emt 0:01:57]} 11. exd5 {[%emt 0:05:29]} Nxd5 {[%emt 0:01:29]} 12. Nxd5 {[%emt 0:02:08]} exd5 {[%emt 0:00:03]} 13. g5 {[%emt 0:03:11]} hxg5 {[%emt 0:07:58]} 14. hxg5 {[%emt 0:00:22]} Ne5 {[%emt 0:15:03]} 15. Qe2 {[%emt 0:06:59]} a6 {[%emt 0:05:59]} 16. Bxd7+ {[%emt 0:00:59]} Qxd7 {[%emt 0:00:29]} 17. Bf4 {[%emt 0:03:22]} Nc4 {[%emt 0:04:24]} 18. b3 {[%emt 0:07:59]} Rh4 {[%emt 0:03:55]} 19. bxc4 {[%emt 0:13:55]} Rxf4 {[%emt 0:01:06]} 20. O-O-O {[%emt 0:00:35]} O-O-O {[%emt 0:06:21]} 21. cxd5 {[%emt 0:05:49]} Ba3+ {[%emt 0:03:55]} 22. Kb1 {[%emt 0:00:21]} Qa4 {[%emt 0:13:08]} 23. Nb3 {[%emt 0:08:52]} Bb4 {[%emt 0:05:28]} 24. Rg4 {[%emt 0:04:45]} Re8 {[%emt 0:10:26]} 25. Qxe8+ {[%emt 0:01:12]} Qxe8 {[%emt 0:00:04]} 26. Rxf4 {[%emt 0:00:05]} Qe2 {[%emt 0:04:04]} 27. Rh1 {[%emt 0:02:08]} Ba3 {[%emt 0:03:18]} 28. Rxf7 {[%emt 0:05:22]} Kb8 29. Nd4 Qd2 {[%emt 0:04:38]} 30. Nc6+ {[%emt 0:01:49]} 1-0

[Event "Polish Youth G18 Championship 2023"]
[Site "Jastrzebia Gora"]
[Date "2023.03.12"]
[Round "1.7"]
[White "Gaczol, Julia"]
[Black "Nowak, Roksana"]
[Result "0-1"]
[ECO "B90"]
[WhiteElo "1419"]
[BlackElo "1816"]
[Annotator "NA RC COMBH"]
[PlyCount "45"]
[EventDate "2023.03.11"]
[EventType "swiss"]
[EventCountry "POL"]
[SourceTitle "playchess.com"]
[Source "ChessBase"]
[SourceQuality "1"]
[TimeControl "40/5400+30:1800+30"]

1. e4 {[%emt 0:00:02]} c5 {[%emt 0:00:10]} 2. Nf3 {[%emt 0:00:09]} d6 {[%emt 0:00:06]} 3. d4 {[%emt 0:00:03]} cxd4 {[%emt 0:00:06]} 4. Nxd4 {[%emt 0:00:04]} Nf6 {[%emt 0:00:08]} 5. Nc3 {[%emt 0:00:57]} a6 {[%emt 0:00:07]} 6. h4 {[%emt 0:00:38]} e5 {[%emt 0:01:44]} 7. Nb3 {[%emt 0:00:44]} Be6 {[%emt 0:02:06]} 8. f4 {[%emt 0:00:25]} exf4 {[%emt 0:06:14]} 9. Bxf4 {[%emt 0:02:25]} Nc6 {[%emt 0:00:11]} 10. Qd2 {[%emt 0:01:40]} Ne5 {[%emt 0:06:10]} 11. O-O-O {[%emt 0:07:06]} Qc7 {[%emt 0:03:01]} 12. Kb1 {[%emt 0:13:48]} Be7 {[%emt 0:07:54]} 13. Nd4 {[%emt 0:11:50]} O-O {[%emt 0:12:07]} 14. Nxe6 {[%emt 0:10:45]} fxe6 {[%emt 0:00:04]} 15. g3 {[%emt 0:02:15]} Rad8 {[%emt 0:07:58]} 16. Bh3 {[%emt 0:06:33]} Neg4 {[%emt 0:14:58]} 17. h5 {[%emt 0:10:40]} Qc4 {[%emt 0:16:29]} 18. Rhf1 {[%emt 0:17:21]} h6 {[%emt 0:01:31]} 19. Rde1 {[%emt 0:06:40]} Qc5 {[%emt 0:04:47]} 20. Bxg4 {[%emt 0:05:44]} Nxg4 {[%emt 0:00:04]} 21. Rh1 {[%emt 0:00:39]} b5 {[%emt 0:03:58]} 22. Qe2 {[%emt 0:00:30]} Ne5 {[%emt 0:01:05]} 23. Be3 {[%emt 0:00:00]} 0-1

[Event "Polish Youth G18 Championship 2023"]
[Site "Jastrzebia Gora"]
[Date "2023.03.12"]
[Round "1.8"]
[White "Lukasik, Zuzanna"]
[Black "Bychowska, Marta"]
[Result "1-0"]
[ECO "B33"]
[WhiteElo "1781"]
[BlackElo "1388"]
[Annotator "NA RC COMBH"]
[PlyCount "89"]
[EventDate "2023.03.11"]
[EventType "swiss"]
[EventCountry "POL"]
[SourceTitle "playchess.com"]
[Source "ChessBase"]
[SourceQuality "1"]
[TimeControl "40/5400+30:1800+30"]

1. e4 {[%emt 0:00:52]} c5 {[%emt 0:00:06]} 2. Nf3 {[%emt 0:00:22]} Nc6 {[%emt 0:00:05]} 3. d4 {[%emt 0:00:47]} cxd4 {[%emt 0:00:05]} 4. Nxd4 {[%emt 0:00:05]} Nf6 {[%emt 0:00:12]} 5. Nc3 {[%emt 0:00:58]} e6 {[%emt 0:00:19]} 6. Be2 {[%emt 0:04:03]} Bb4 {[%emt 0:00:46]} 7. Bf3 {[%emt 0:06:10]} Qa5 {[%emt 0:05:43]} 8. Nde2 {[%emt 0:05:53]} Ne5 {[%emt 0:07:47]} 9. a3 {[%emt 0:03:41]} Nxf3+ {[%emt 0:01:03]} 10. gxf3 {[%emt 0:00:06]} Bxc3+ {[%emt 0:03:55]} 11. Nxc3 {[%emt 0:00:14]} d5 {[%emt 0:02:06]} 12. Qd4 {[%emt 0:05:01]} dxe4 {[%emt 0:06:09]} 13. fxe4 {[%emt 0:00:11]} e5 {[%emt 0:01:10]} 14. Qd3 {[%emt 0:11:07]} Bg4 {[%emt 0:01:50]} 15. f3 {[%emt 0:05:16]} Rd8 {[%emt 0:07:54]} 16. Qe2 {[%emt 0:04:59]} Bh5 {[%emt 0:10:57]} 17. Bd2 {[%emt 0:07:34]} Qc7 {[%emt 0:04:30]} 18. O-O-O {[%emt 0:01:46]} O-O {[%emt 0:06:40]} 19. Rhg1 {[%emt 0:04:45]} Bg6 {[%emt 0:00:30]} 20. Bg5 {[%emt 0:13:41]} Rxd1+ {[%emt 0:08:14]} 21. Rxd1 {[%emt 0:00:24]} h6 {[%emt 0:11:16]} 22. Bxf6 {[%emt 0:04:24]} gxf6 {[%emt 0:00:08]} 23. Qe3 {[%emt 0:01:04]} Kh7 {[%emt 0:02:04]} 24. Qxa7 {[%emt 0:03:05]} f5 {[%emt 0:00:54]} 25. Qe3 {[%emt 0:04:57]} Rc8 {[%emt 0:01:47]} 26. Qd3 {[%emt 0:01:11]} fxe4 {[%emt 0:02:27]} 27. fxe4 {[%emt 0:00:17]} Qc6 {[%emt 0:01:11]} 28. Qd5 {[%emt 0:03:10]} Qxd5 {[%emt 0:00:47]} 29. Rxd5 {[%emt 0:00:11]} f6 {[%emt 0:00:39]} 30. Rd7+ {[%emt 0:00:19]} Kg8 {[%emt 0:00:12]} 31. Rxb7 {[%emt 0:00:18]} Kf8 {[%emt 0:01:27]} 32. Kd2 {[%emt 0:03:22]} Rd8+ {[%emt 0:00:38]} 33. Ke3 {[%emt 0:01:21]} f5 {[%emt 0:00:27]} 34. exf5 {[%emt 0:01:02]} Bxf5 {[%emt 0:00:05]} 35. Rb5 {[%emt 0:01:05]} Bxc2 {[%emt 0:00:35]} 36. Rxe5 {[%emt 0:00:24]} Rd3+ {[%emt 0:00:10]} 37. Kf2 {[%emt 0:00:34]} Rd2+ {[%emt 0:01:12]} 38. Re2 {[%emt 0:00:29]} Rxe2+ {[%emt 0:00:02]} 39. Kxe2 {[%emt 0:00:06]} Ke7 {[%emt 0:00:07]} 40. Ke3 {[%emt 0:00:00]} Kd6 {[%emt 0:00:00]} 41. Kd4 {[%emt 0:00:54]} Bb3 {[%emt 0:00:59]} 42. Ne4+ {[%emt 0:02:39]} Kc6 {[%emt 0:00:17]} 43. Kc3 {[%emt 0:00:35]} Bd5 {[%emt 0:00:27]} 44. Ng3 {[%emt 0:01:32]} Bf3 {[%emt 0:00:19]} 45. Nf5 {[%emt 0:00:25]} 1-0

[Event "Polish Youth G18 Championship 2023"]
[Site "Jastrzebia Gora"]
[Date "2023.03.12"]
[Round "1.9"]
[White "Samol, Julia"]
[Black "Kucharska, Helena"]
[Result "0-1"]
[ECO "C01"]
[WhiteElo "1374"]
[BlackElo "1779"]
[Annotator "NA RC COMBH"]
[PlyCount "86"]
[EventDate "2023.03.11"]
[EventType "swiss"]
[EventCountry "POL"]
[SourceTitle "playchess.com"]
[Source "ChessBase"]
[SourceQuality "1"]
[TimeControl "40/5400+30:1800+30"]

1. e4 {[%emt 0:00:03]} e6 {[%emt 0:00:32]} 2. d4 {[%emt 0:00:17]} d5 {[%emt 0:00:33]} 3. exd5 {[%emt 0:01:01]} exd5 {[%emt 0:00:58]} 4. Nf3 {[%emt 0:01:11]} Bd6 {[%emt 0:00:52]} 5. Bd3 {[%emt 0:01:11]} Bg4 {[%emt 0:02:27]} 6. O-O {[%emt 0:03:09]} Ne7 {[%emt 0:01:12]} 7. Re1 {[%emt 0:05:41]} Nbc6 {[%emt 0:00:44]} 8. c3 {[%emt 0:01:53]} Qd7 {[%emt 0:01:06]} 9. Nbd2 {[%emt 0:07:15]} h6 {[%emt 0:02:11]} 10. Qc2 {[%emt 0:01:29]} O-O-O {[%emt 0:01:14]} 11. b4 {[%emt 0:01:28]} Bf5 {[%emt 0:01:55]} 12. b5 {[%emt 0:04:24]} Na5 {[%emt 0:01:53]} 13. a4 {[%emt 0:02:32]} Bxd3 {[%emt 0:01:14]} 14. Qxd3 {[%emt 0:00:07]} g5 {[%emt 0:00:51]} 15. c4 {[%emt 0:08:51]} dxc4 {[%emt 0:04:27]} 16. Nxc4 {[%emt 0:00:19]} Bb4 {[%emt 0:00:27]} 17. Rd1 {[%emt 0:12:38]} Nd5 {[%emt 0:03:22]} 18. Nxa5 {[%emt 0:07:46]} Bxa5 {[%emt 0:00:28]} 19. Ne5 {[%emt 0:04:04]} Qe6 {[%emt 0:01:28]} 20. Nc4 {[%emt 0:06:08]} Bc3 {[%emt 0:02:33]} 21. Bb2 {[%emt 0:01:53]} Bxb2 {[%emt 0:01:43]} 22. Nxb2 {[%emt 0:00:03]} Nf4 {[%emt 0:00:47]} 23. Qf3 {[%emt 0:05:27]} Ne2+ {[%emt 0:03:22]} 24. Kh1 {[%emt 0:00:10]} Nxd4 {[%emt 0:00:50]} 25. Qc3 {[%emt 0:01:31]} Ne2 {[%emt 0:04:29]} 26. Qc5 b6 {[%emt 0:06:10]} 27. Qc2 {[%emt 0:09:10]} Rxd1+ {[%emt 0:00:52]} 28. Rxd1 {[%emt 0:04:44]} Re8 {[%emt 0:02:23]} 29. Qd3 {[%emt 0:02:01]} Nf4 {[%emt 0:02:28]} 30. Qc3 {[%emt 0:02:26]} Qe4 {[%emt 0:01:02]} 31. f3 {[%emt 0:03:40]} Qe2 {[%emt 0:00:44]} 32. Rg1 {[%emt 0:00:20]} Re6 {[%emt 0:05:14]} 33. Qh8+ {[%emt 0:02:05]} Kb7 {[%emt 0:00:15]} 34. Qc3 {[%emt 0:00:55]} h5 {[%emt 0:01:09]} 35. Nc4 {[%emt 0:00:25]} Nd3 {[%emt 0:00:44]} 36. h3 {[%emt 0:00:54]} g4 {[%emt 0:05:18]} 37. fxg4 {[%emt 0:01:14]} hxg4 {[%emt 0:00:22]} 38. a5 {[%emt 0:00:21]} g3 {[%emt 0:00:45]} 39. a6+ {[%emt 0:00:39]} Kb8 {[%emt 0:00:24]} 40. Ra1 {[%emt 0:00:00]} Nf2+ {[%emt 0:00:00]} 41. Kg1 {[%emt 0:00:33]} Nxh3+ {[%emt 0:00:29]} 42. Kh1 {[%emt 0:01:54]} Nf2+ {[%emt 0:00:58]} 43. Kg1 {[%emt 0:00:12]} Rh6 {[%emt 0:00:18]} 0-1

[Event "Polish Youth G18 Championship 2023"]
[Site "Jastrzebia Gora"]
[Date "2023.03.12"]
[Round "1.10"]
[White "Krzyzosiak, Marta"]
[Black "Czerwinska, Oliwia"]
[Result "1-0"]
[ECO "C54"]
[WhiteElo "1778"]
[BlackElo "1369"]
[Annotator "NA RC COMBH"]
[PlyCount "43"]
[EventDate "2023.03.11"]
[EventType "swiss"]
[EventCountry "POL"]
[SourceTitle "playchess.com"]
[Source "ChessBase"]
[SourceQuality "1"]
[TimeControl "40/5400+30:1800+30"]

1. e4 {[%emt 0:00:04]} e5 {[%emt 0:00:05]} 2. Nf3 {[%emt 0:00:06]} Nc6 {[%emt 0:00:06]} 3. Bc4 {[%emt 0:00:05]} Bc5 {[%emt 0:00:13]} 4. c3 {[%emt 0:00:10]} Nf6 {[%emt 0:00:28]} 5. d4 {[%emt 0:00:16]} exd4 {[%emt 0:00:22]} 6. cxd4 {[%emt 0:00:07]} Bb4+ {[%emt 0:00:23]} 7. Bd2 {[%emt 0:00:23]} Bxd2+ {[%emt 0:00:42]} 8. Nbxd2 {[%emt 0:00:07]} O-O {[%emt 0:02:25]} 9. O-O {[%emt 0:02:46]} d5 {[%emt 0:01:59]} 10. exd5 {[%emt 0:01:41]} Nxd5 {[%emt 0:00:11]} 11. Rc1 {[%emt 0:00:55]} Nb6 {[%emt 0:02:28]} 12. Bb3 {[%emt 0:01:32]} Bg4 {[%emt 0:03:18]} 13. h3 {[%emt 0:00:26]} Bh5 {[%emt 0:00:08]} 14. Rc5 {[%emt 0:00:26]} Bg6 {[%emt 0:01:55]} 15. Qc1 {[%emt 0:04:04]} Nxd4 {[%emt 0:09:17]} 16. Nxd4 {[%emt 0:01:14]} Qxd4 {[%emt 0:00:09]} 17. Nf3 {[%emt 0:03:35]} Qf6 {[%emt 0:02:30]} 18. Rxc7 {[%emt 0:03:20]} Rac8 {[%emt 0:09:40]} 19. Re1 {[%emt 0:05:22]} Bf5 {[%emt 0:15:49]} 20. Rxc8 {[%emt 0:17:56]} Rxc8 {[%emt 0:04:46]} 21. Qxc8+ {[%emt 0:02:27]} Nxc8 {[%emt 0:00:08]} 22. Re8# {[%emt 0:00:04]} 1-0

[Event "Polish Youth G18 Championship 2023"]
[Site "Jastrzebia Gora"]
[Date "2023.03.12"]
[Round "1.11"]
[White "Kaznowska, Kinga"]
[Black "Anyz, Monika"]
[Result "1-0"]
[ECO "B34"]
[WhiteElo "1352"]
[BlackElo "1755"]
[Annotator "NA RC COMBH"]
[PlyCount "141"]
[EventDate "2023.03.11"]
[EventType "swiss"]
[EventCountry "POL"]
[SourceTitle "playchess.com"]
[Source "ChessBase"]
[SourceQuality "1"]
[TimeControl "40/5400+30:1800+30"]

1. e4 {[%emt 0:00:03]} c5 {[%emt 0:00:06]} 2. Nf3 {[%emt 0:00:04]} Nc6 {[%emt 0:00:13]} 3. d4 {[%emt 0:00:07]} cxd4 {[%emt 0:00:07]} 4. Nxd4 {[%emt 0:00:04]} g6 {[%emt 0:00:16]} 5. Nc3 {[%emt 0:00:57]} Bg7 {[%emt 0:00:10]} 6. Be3 {[%emt 0:00:11]} Nf6 {[%emt 0:00:15]} 7. g3 {[%emt 0:00:24]} O-O {[%emt 0:01:01]} 8. Bg2 {[%emt 0:00:26]} d6 {[%emt 0:02:41]} 9. h3 {[%emt 0:02:57]} Ne5 {[%emt 0:04:49]} 10. Qe2 {[%emt 0:02:23]} a6 {[%emt 0:04:59]} 11. f4 {[%emt 0:01:35]} Nc6 {[%emt 0:00:27]} 12. Rd1 {[%emt 0:00:37]} Nh5 {[%emt 0:07:31]} 13. Qf2 {[%emt 0:02:17]} Nxd4 {[%emt 0:26:45]} 14. Bxd4 {[%emt 0:00:27]} Bxd4 {[%emt 0:00:26]} 15. Rxd4 {[%emt 0:00:54]} Qb6 {[%emt 0:08:17]} 16. Na4 {[%emt 0:09:37]} Qa5+ 17. Nc3 {[%emt 0:03:45]} Ng7 {[%emt 0:08:38]} 18. O-O {[%emt 0:02:05]} Be6 19. a3 {[%emt 0:03:01]} Rac8 {[%emt 0:05:19]} 20. Rfd1 b5 {[%emt 0:05:21]} 21. g4 {[%emt 0:07:40]} Qb6 {[%emt 0:06:33]} 22. Bf1 {[%emt 0:06:43]} f5 {[%emt 0:03:38]} 23. exf5 {[%emt 0:03:53]} gxf5 {[%emt 0:00:08]} 24. g5 {[%emt 0:00:11]} Bf7 {[%emt 0:00:17]} 25. R1d2 {[%emt 0:03:32]} Ne6 {[%emt 0:03:05]} 26. R4d3 {[%emt 0:01:00]} Qxf2+ {[%emt 0:00:16]} 27. Rxf2 {[%emt 0:00:19]} Nc5 {[%emt 0:00:21]} 28. Re3 {[%emt 0:00:22]} Rfe8 {[%emt 0:00:39]} 29. Rd2 {[%emt 0:02:20]} Rcd8 {[%emt 0:04:08]} 30. Bg2 {[%emt 0:00:51]} e6 {[%emt 0:03:33]} 31. b4 {[%emt 0:04:26]} Na4 {[%emt 0:03:05]} 32. Nxa4 {[%emt 0:00:16]} bxa4 {[%emt 0:00:05]} 33. Bc6 {[%emt 0:00:06]} Re7 {[%emt 0:00:06]} 34. Bxa4 {[%emt 0:00:07]} Rc7 {[%emt 0:00:32]} 35. Bb3 {[%emt 0:00:24]} d5 {[%emt 0:00:26]} 36. Red3 {[%emt 0:08:19]} Rdc8 {[%emt 0:00:32]} 37. Kf2 {[%emt 0:04:16]} Bh5 {[%emt 0:01:01]} 38. Re3 {[%emt 0:01:14]} Kf7 {[%emt 0:00:41]} 39. Rdd3 {[%emt 0:01:37]} Rc6 {[%emt 0:01:43]} 40. Ke1 {[%emt 0:00:00]} Rd8 {[%emt 0:00:00]} 41. c4 {[%emt 0:04:54]} d4 {[%emt 0:17:24]} 42. Re5 {[%emt 0:00:13]} Ke7 {[%emt 0:00:35]} 43. Ra5 {[%emt 0:00:52]} Bg6 {[%emt 0:02:51]} 44. c5 {[%emt 0:01:43]} e5 {[%emt 0:00:56]} 45. fxe5 {[%emt 0:00:36]} f4 {[%emt 0:00:18]} 46. Rf3 {[%emt 0:00:14]} d3 {[%emt 0:01:52]} 47. Kd2 {[%emt 0:00:22]} Rd4 {[%emt 0:05:12]} 48. h4 {[%emt 0:02:24]} Re4 {[%emt 0:04:51]} 49. Rxd3 {[%emt 0:06:04]} Rxe5 {[%emt 0:00:06]} 50. Rf3 {[%emt 0:00:15]} Re4 {[%emt 0:01:37]} 51. Bc2 {[%emt 0:00:41]} Re3 {[%emt 0:01:37]} 52. Rxf4 {[%emt 0:00:31]} Rce6 {[%emt 0:00:16]} 53. Bxg6 {[%emt 0:00:45]} hxg6 {[%emt 0:00:04]} 54. Rxa6 {[%emt 0:01:19]} Re2+ {[%emt 0:00:26]} 55. Kd3 {[%emt 0:00:12]} R2e3+ {[%emt 0:01:06]} 56. Kd4 {[%emt 0:00:11]} Rxa6 {[%emt 0:00:28]} 57. Kxe3 {[%emt 0:00:08]} Rxa3+ {[%emt 0:00:03]} 58. Kd4 {[%emt 0:00:09]} Rb3 {[%emt 0:00:26]} 59. Kd5 {[%emt 0:00:32]} Rd3+ {[%emt 0:00:33]} 60. Kc6 {[%emt 0:00:11]} Rb3 {[%emt 0:01:05]} 61. b5 {[%emt 0:00:25]} Ke6 {[%emt 0:00:14]} 62. Rf6+ {[%emt 0:00:20]} Ke7 {[%emt 0:00:09]} 63. b6 {[%emt 0:00:17]} Rb4 {[%emt 0:00:55]} 64. b7 {[%emt 0:00:04]} Rb3 {[%emt 0:00:40]} 65. Kc7 {[%emt 0:00:16]} Rb5 {[%emt 0:00:24]} 66. b8=Q {[%emt 0:00:09]} Rxc5+ {[%emt 0:00:31]} 67. Rc6 {[%emt 0:00:07]} Rd5 {[%emt 0:00:23]} 68. Qb4+ {[%emt 0:00:11]} Kf7 {[%emt 0:00:35]} 69. Rf6+ {[%emt 0:00:11]} Kg7 {[%emt 0:00:39]} 70. Qe7+ {[%emt 0:00:17]} Kg8 {[%emt 0:00:07]} 71. Rf8# {[%emt 0:00:04]} 1-0

[Event "Polish Youth G18 Championship 2023"]
[Site "Jastrzebia Gora"]
[Date "2023.03.12"]
[Round "1.12"]
[White "Arciszewska, Zuzanna"]
[Black "Bartoszek, Julia"]
[Result "1-0"]
[ECO "E91"]
[WhiteElo "1750"]
[BlackElo "1344"]
[Annotator "NA RC COMBH"]
[PlyCount "119"]
[EventDate "2023.03.11"]
[EventType "swiss"]
[EventCountry "POL"]
[SourceTitle "playchess.com"]
[Source "ChessBase"]
[SourceQuality "1"]
[TimeControl "40/5400+30:1800+30"]

1. d4 {[%emt 0:00:02]} Nf6 {[%emt 0:00:12]} 2. c4 {[%emt 0:00:18]} g6 {[%emt 0:00:14]} 3. Nc3 {[%emt 0:00:23]} Bg7 {[%emt 0:00:13]} 4. e4 {[%emt 0:00:45]} d6 {[%emt 0:00:09]} 5. Nf3 {[%emt 0:00:58]} O-O {[%emt 0:00:48]} 6. Be2 {[%emt 0:00:27]} Nbd7 {[%emt 0:01:18]} 7. O-O {[%emt 0:00:30]} e5 {[%emt 0:02:38]} 8. d5 {[%emt 0:05:22]} Nc5 {[%emt 0:02:47]} 9. Qc2 {[%emt 0:01:17]} Bg4 {[%emt 0:05:13]} 10. b4 {[%emt 0:04:04]} Ncd7 {[%emt 0:03:42]} 11. Be3 {[%emt 0:02:28]} Qe7 {[%emt 0:04:20]} 12. Rac1 {[%emt 0:11:22]} Rfc8 {[%emt 0:13:34]} 13. h3 {[%emt 0:06:16]} Bxf3 {[%emt 0:03:00]} 14. Bxf3 {[%emt 0:00:07]} c5 {[%emt 0:04:07]} 15. dxc6 {[%emt 0:06:12]} Rxc6 {[%emt 0:03:05]} 16. Qb3 {[%emt 0:06:25]} a6 {[%emt 0:04:13]} 17. Rfd1 {[%emt 0:05:58]} Rac8 {[%emt 0:03:18]} 18. Be2 {[%emt 0:04:37]} h6 {[%emt 0:12:18]} 19. f3 {[%emt 0:05:55]} Kh7 {[%emt 0:07:32]} 20. b5 {[%emt 0:02:02]} Nc5 {[%emt 0:05:53]} 21. Qb4 {[%emt 0:04:37]} R6c7 {[%emt 0:03:59]} 22. Rc2 {[%emt 0:04:00]} Rd7 {[%emt 0:03:18]} 23. Rcd2 {[%emt 0:01:11]} Rcd8 {[%emt 0:03:10]} 24. Bd3 {[%emt 0:14:04]} Nxd3 {[%emt 0:02:24]} 25. Rxd3 {[%emt 0:00:03]} Ne8 {[%emt 0:01:22]} 26. Bb6 {[%emt 0:03:28]} Rc8 {[%emt 0:00:24]} 27. Nd5 {[%emt 0:02:55]} Qe6 {[%emt 0:00:40]} 28. Be3 {[%emt 0:02:05]} Rcd8 {[%emt 0:01:59]} 29. bxa6 {[%emt 0:01:02]} bxa6 {[%emt 0:00:15]} 30. Qa5 {[%emt 0:00:52]} f5 {[%emt 0:01:41]} 31. Qxa6 {[%emt 0:01:14]} fxe4 {[%emt 0:01:12]} 32. fxe4 {[%emt 0:00:11]} Rb8 {[%emt 0:03:17]} 33. a4 {[%emt 0:02:59]} Rdd8 {[%emt 0:01:09]} 34. a5 {[%emt 0:00:58]} Ra8 {[%emt 0:00:15]} 35. Qb5 {[%emt 0:00:14]} Rdb8 {[%emt 0:00:25]} 36. Bb6 {[%emt 0:00:24]} Qf7 {[%emt 0:01:48]} 37. Rf3 {[%emt 0:00:29]} Qe6 {[%emt 0:00:51]} 38. a6 {[%emt 0:02:09]} Qc8 {[%emt 0:00:49]} 39. Ra1 {[%emt 0:00:46]} Qe6 {[%emt 0:01:20]} 40. a7 {[%emt 0:00:00]} Qc8 {[%emt 0:00:00]} 41. Qa6 {[%emt 0:03:16]} Qxa6 {[%emt 0:03:14]} 42. Rxa6 {[%emt 0:00:03]} Rb7 {[%emt 0:00:57]} 43. Rfa3 {[%emt 0:01:55]} Kg8 {[%emt 0:03:18]} 44. Be3 {[%emt 0:01:13]} Nc7 {[%emt 0:01:48]} 45. Rb6 {[%emt 0:00:52]} Rxb6 {[%emt 0:03:29]} 46. Nxb6 {[%emt 0:00:10]} Rd8 {[%emt 0:00:42]} 47. a8=Q {[%emt 0:00:17]} Nxa8 {[%emt 0:00:07]} 48. Rxa8 {[%emt 0:00:23]} Rxa8 {[%emt 0:00:07]} 49. Nxa8 {[%emt 0:00:06]} Kf7 {[%emt 0:00:11]} 50. Kf2 {[%emt 0:00:33]} Ke7 {[%emt 0:00:09]} 51. Nb6 {[%emt 0:00:13]} g5 {[%emt 0:00:09]} 52. Ke2 {[%emt 0:01:24]} Kd8 {[%emt 0:00:15]} 53. Kd3 {[%emt 0:00:19]} Kc7 {[%emt 0:00:08]} 54. Nd5+ {[%emt 0:00:17]} Kd7 {[%emt 0:00:13]} 55. Kc3 {[%emt 0:00:35]} Bf8 {[%emt 0:00:13]} 56. Kb4 {[%emt 0:00:23]} Kc6 {[%emt 0:00:13]} 57. Ka5 {[%emt 0:00:55]} Bg7 {[%emt 0:00:18]} 58. Ne7+ {[%emt 0:00:29]} Kd7 {[%emt 0:00:12]} 59. Nf5 {[%emt 0:00:06]} Bf8 {[%emt 0:00:05]} 60. Kb6 {[%emt 0:00:28]} 1-0

[Event "Polish Youth G18 Championship 2023"]
[Site "Jastrzebia Gora"]
[Date "2023.03.12"]
[Round "1.13"]
[White "Sivickis, Kornelia"]
[Black "Obrochta, Lena"]
[Result "1/2-1/2"]
[ECO "A09"]
[WhiteElo "1328"]
[BlackElo "1673"]
[Annotator "NA RC COMBH"]
[PlyCount "66"]
[EventDate "2023.03.11"]
[EventType "swiss"]
[EventCountry "POL"]
[SourceTitle "playchess.com"]
[Source "ChessBase"]
[SourceQuality "1"]
[TimeControl "40/5400+30:1800+30"]

1. Nf3 {[%emt 0:00:30]} d5 {[%emt 0:00:11]} 2. c4 {[%emt 0:00:00]} d4 {[%emt 0:00:23]} 3. e3 {[%emt 0:00:00]} c5 {[%emt 0:00:47]} 4. b4 {[%emt 0:00:33]} Bg4 {[%emt 0:11:51]} 5. Qa4+ {[%emt 0:02:49]} Qd7 {[%emt 0:07:19]} 6. Qxd7+ {[%emt 0:03:50]} Nxd7 {[%emt 0:00:24]} 7. Be2 {[%emt 0:00:16]} e5 {[%emt 0:02:58]} 8. Nxd4 {[%emt 0:13:01]} cxd4 {[%emt 0:06:39]} 9. Bxg4 {[%emt 0:00:09]} Bxb4 {[%emt 0:00:53]} 10. exd4 {[%emt 0:00:58]} exd4 {[%emt 0:06:00]} 11. Bxd7+ {[%emt 0:05:41]} Kxd7 {[%emt 0:01:31]} 12. O-O {[%emt 0:00:53]} Ne7 {[%emt 0:02:15]} 13. Bb2 {[%emt 0:02:06]} Nc6 {[%emt 0:02:23]} 14. a3 {[%emt 0:00:56]} Ba5 {[%emt 0:01:16]} 15. Rd1 {[%emt 0:02:52]} Rhe8 {[%emt 0:05:18]} 16. Kf1 {[%emt 0:07:30]} Re6 {[%emt 0:15:27]} 17. a4 {[%emt 0:09:21]} Rae8 {[%emt 0:04:02]} 18. Na3 {[%emt 0:01:58]} d3 {[%emt 0:03:00]} 19. Bxg7 {[%emt 0:14:58]} Bb6 {[%emt 0:01:53]} 20. Rac1 {[%emt 0:04:55]} Bc5 {[%emt 0:01:50]} 21. Rc3 {[%emt 0:01:28]} Nb4 {[%emt 0:02:00]} 22. Nb5 {[%emt 0:03:03]} Re2 {[%emt 0:09:48]} 23. Bd4 {[%emt 0:05:02]} Bxd4 {[%emt 0:03:17]} 24. Nxd4 {[%emt 0:00:07]} R2e4 {[%emt 0:01:08]} 25. Nf5 {[%emt 0:02:28]} Rc8 {[%emt 0:03:28]} 26. Ne3 {[%emt 0:01:54]} Rc5 {[%emt 0:01:15]} 27. Rb3 {[%emt 0:02:10]} a5 {[%emt 0:00:55]} 28. f3 {[%emt 0:02:47]} Rd4 {[%emt 0:00:53]} 29. Rc3 {[%emt 0:01:30]} Kd6 {[%emt 0:02:54]} 30. Kf2 {[%emt 0:02:01]} f5 {[%emt 0:01:36]} 31. g3 {[%emt 0:00:45]} Na2 {[%emt 0:00:32]} 32. Ra3 {[%emt 0:00:18]} Nb4 {[%emt 0:00:08]} 33. Rc3 {[%emt 0:00:13]} Ke5 1/2-1/2